Cogmind - Beta 9.6 --- EXPLORER MODE // 2020.07.23 @ 01:06:52 Player: K.Ioz Result: Self-destructed Performance ------------- Evolutions (2) 1000 Regions Visited (5) 1000 Robots Destroyed (19) 95 Value Destroyed (410) 410 Prototype IDs (25) 500 Alien Tech Used (0) 0 Bonus (300) 300 TOTAL SCORE: 3305 Bonus ------- Aligned with FarCom 300 Cogmind --------- Core Integrity 533/550 Matter 267/300 Energy 125/125 System Corruption 0% Temperature Cool (0) Movement Walking (120) Location -8/Materials Parts ------- > --- POWER (1) -------- Light Ion Engine > --- PROPULSION (2) --- Aluminum Leg Improved Aluminum Leg > --- UTILITY (7) ------ Improved Heat Sink Medium Storage Unit Sensor Array Signal Interpreter Improved Terrain Scan Processor 0b10 Alert Chip > --- WEAPON (2) ------- Light Assault Rifle Autogun > --- INVENTORY (8) ---- Flight Unit Flight Unit Small Storage Unit Structural Scanner Mini Grenade Launcher Peak State ------------ > --- POWER ------------ Light Ion Engine > --- PROPULSION ------- Aluminum Leg Improved Aluminum Leg > --- UTILITY ---------- Improved Heat Sink Medium Storage Unit Sensor Array Signal Interpreter Improved Terrain Scan Processor 0b10 Alert Chip Light Armor Plating > --- WEAPON ----------- Light Assault Rifle Autogun > --- INVENTORY -------- Flight Unit Flight Unit Small Storage Unit Structural Scanner Mini Grenade Launcher [Rating: 23] Favorites ----------- Power Light Ion Engine Engine Light Ion Engine Propulsion Aluminum Leg Leg Aluminum Leg Utility Medium Storage Unit Device Structural Scanner Storage Medium Storage Unit Processor 0b10 Alert Chip Protection Light Armor Plating Weapon Light Assault Rifle Energy Gun Medium Laser Ballistic Gun Light Assault Rifle Launcher Grenade Launcher Build | -11 -10 -10 -10 -9 -8 ------- Run | Scr Mat Min Exi Min Mat Slots Evolved 5 | . 1 . . . 4 Power . | . . . . . . Propulsion . | . . . . . . Utility 5 | . 1 . . . 4 Weapon . | . . . . . . Parts Attached 22 | 6 10 . . . 6 Power 2 | 1 1 . . . . Engine 2 | 1 1 . . . . Core . | . . . . . . Reactor . | . . . . . . Propulsion 3 | 2 1 . . . . Treads . | . . . . . . Leg 3 | 2 1 . . . . Wheel . | . . . . . . Hover . | . . . . . . Flight . | . . . . . . Utility 9 | 2 2 . . . 5 Device 3 | . 1 . . . 2 Storage 1 | 1 . . . . . Processor 3 | . . . . . 3 Hackware . | . . . . . . Protection 2 | 1 1 . . . . Artifact . | . . . . . . Weapon 8 | 1 6 . . . 1 Energy Gun 1 | . 1 . . . . Energy Cannon . | . . . . . . Ballistic Gun 5 | 1 3 . . . 1 Ballistic Cannon . | . . . . . . Launcher 2 | . 2 . . . . Special Weapon . | . . . . . . Impact Weapon . | . . . . . . Slashing Weapon . | . . . . . . Piercing Weapon . | . . . . . . Special Melee Weapon . | . . . . . . Unidentified Prototypes . | . . . . . . Parts Lost 2 | . . . . . 2 Power . | . . . . . . Propulsion . | . . . . . . Utility 1 | . . . . . 1 Weapon 1 | . . . . . 1 Highest Loss Streak 2 | . . . . . 2 Average Slot Usage (%) 97 | . 93 100 100 100 99 Engine 10 | . 12 12 12 12 8 Leg 21 | . 21 25 25 25 16 Device 14 | . 12 12 12 12 20 Storage 10 | . 12 12 12 12 8 Processor 5 | . . . . . 20 Protection 10 | . 11 12 12 12 7 Energy Gun 10 | . 9 12 12 12 7 Ballistic Gun 10 | . 11 12 12 12 8 Naked Turns . | . . . . . . Heaviest Build 20 | 15 20 18 18 18 20 Greatest Support 23 | 20 23 23 23 23 23 Greatest Overweight (x) 1 | 1 1 . . . . Average Overweight (x) . | . . . . . . Largest Inventory Capacity 8 | 8 8 8 8 8 8 Average Capacity 7 | 6 8 8 8 8 8 Most Carried 8 | 6 8 8 8 8 8 Average Carried 6 | 4 7 8 7 7 4 Final Capacity 8 | 8 8 8 8 8 8 Final Carried 8 | 6 8 8 8 8 5 Class Distribution -------------------- 74% | Hacker-Mutant 25% | Hacker-Skirmisher Dominant Class ---------------- Hacker-Mutant | -10/Materials Hacker-Mutant | -10/Mines Hacker-Mutant | -10/Exiles Hacker-Mutant | -9/Mines Hacker-Skirmisher | -8/Materials Resources | -11 -10 -10 -10 -9 -8 ----------- Run | Scr Mat Min Exi Min Mat Matter Collected 471 | 211 101 88 . 15 56 Remotely . | . . . . . . Salvage Created 401 | . 202 . . 135 64 Parts 35 | . 23 . . 7 5 Haulers Intercepted . | . . . . . . Recyclers Shooed . | . . . . . . Parts Field Recycled . | . . . . . . Retrieved Matter . | . . . . . . Parts Self-Destructed . | . . . . . . Prevented . | . . . . . . Kills | -11 -10 -10 -10 -9 -8 ------- Run | Scr Mat Min Exi Min Mat Combat Hostiles Destroyed 14 | . 8 . . 5 1 Guns 10 | . 4 . . 5 1 AOE 4 | . 4 . . . . Classes Destroyed 6 | . 4 . . . 2 Worker 1 | . 1 . . . . Operator 1 | . . . . . 1 Watcher 3 | . 3 . . . . Swarmer 7 | . 4 . . 3 . Grunt 6 | . 4 . . 2 . Sentry 1 | . . . . . 1 Best Kill Streak 4 | . 4 . . 3 1 Combat Bots Only 3 | . 3 . . 3 1 Max Kills in Single Turn 3 | . 3 . . 1 1 Gunslinging . | . . . . . . Exploded 2 | . 2 . . . . Melee . | . . . . . . Uniques/NPCs Destroyed . | . . . . . . Combat | -11 -10 -10 -10 -9 -8 -------- Run | Scr Mat Min Exi Min Mat Damage Taken 433 | . 48 . . 113 272 Core 63 | . 19 . . 27 17 Absorbed by Shields . | . . . . . . Core Remaining (%) 90 | 100 . . . 81 . Volleys Fired 53 | . 17 . . 14 22 Largest 2 | . 2 . . 2 2 Hottest 80 | . 80 . . 70 70 Shots Fired 95 | . 33 . . 26 36 Gun 92 | . 30 . . 26 36 Cannon . | . . . . . . Launcher 3 | . 3 . . . . Special . | . . . . . . Kinetic 53 | . 13 . . 14 26 Thermal 39 | . 17 . . 12 10 Explosive 3 | . 3 . . . . Electromagnetic . | . . . . . . Robot Hit Streak 20 | . 8 . . 20 16 Robot Miss Streak 3 | . 3 . . 1 1 Penetration Max . | . . . . . . Secondary Targets . | . . . . . . Shots Hit Robots 74 | . 21 . . 22 31 Core Hits 39 | 1 18 . . 8 12 Critical Hits . | . . . . . . Critical Kills . | . . . . . . Critical Parts Destroyed . | . . . . . . Melee Attacks . | . . . . . . Impact . | . . . . . . Slashing . | . . . . . . Piercing . | . . . . . . Sneak Attacks . | . . . . . . Combat Hostiles . | . . . . . . Follow-up Attacks . | . . . . . . Damage Inflicted 1008 | 5 487 . . 247 269 Guns 717 | . 201 . . 247 269 Cannons . | . . . . . . Explosions 286 | . 286 . . . . Melee . | . . . . . . Ramming 5 | 5 . . . . . Kinetic 352 | . 75 . . 109 168 Thermal 365 | . 126 . . 138 101 Explosive 286 | . 286 . . . . Electromagnetic . | . . . . . . Impact . | . . . . . . Slashing . | . . . . . . Piercing . | . . . . . . Highest Corruption . | . . . . . . Average Corruption . | . . . . . . Corruption Purged . | . . . . . . Overload Shots . | . . . . . . Overflow Damage 10 | . 10 . . . . Projectiles . | . . . . . . Explosions 10 | . 10 . . . . Melee . | . . . . . . Knockbacks . | . . . . . . Impact . | . . . . . . Kinetic . | . . . . . . Secondary . | . . . . . . Self-Inflicted Damage . | . . . . . . Shots . | . . . . . . Rammed . | . . . . . . Targets Rammed 1 | 1 . . . . . Kicked 1 | 1 . . . . . Crushed . | . . . . . . Highest Temperature 151 | . 86 . . 151 7 Average Temperature 50 | . 28 . . 78 6 Received Heat Transfer 117 | . 12 . . 48 57 Siege Activations . | . . . . . . Robots Corrupted . | . . . . . . Combat Hostiles . | . . . . . . Parts Fried . | . . . . . . Impact Corruptions . | . . . . . . Robots Melted . | . . . . . . Combat Hostiles . | . . . . . . Parts Melted 2 | . . . . 2 . Heat Transferred 1073 | . 370 . . 407 296 Parts Sabotaged . | . . . . . . Parts Stolen . | . . . . . . Parts Stripped . | . . . . . . Power Chain Reactions . | . . . . . . Missiles Intercepted . | . . . . . . Alert | -11 -10 -10 -10 -9 -8 ------- Run | Scr Mat Min Exi Min Mat Peak Influence 160 | . 160 . . 70 65 Average Influence 46 | . 94 . . 21 29 Maximum Alert Level . | . . . . . . Low Security (%) 100 | 100 100 100 . 100 100 Level 1 . | . . . . . . Level 2 . | . . . . . . Level 3 . | . . . . . . Level 4 . | . . . . . . Level 5 . | . . . . . . High Security . | . . . . . . Max Security . | . . . . . . Squads Dispatched 1 | . . . . . 1 Investigation . | . . . . . . Extermination . | . . . . . . Reinforcement 1 | . . . . . 1 Assault . | . . . . . . Garrison . | . . . . . . Intercept . | . . . . . . Construction Impeded . | . . . . . . Haulers Reinforced . | . . . . . . Stealth | -11 -10 -10 -10 -9 -8 --------- Run | Scr Mat Min Exi Min Mat Distress Signals 2 | . 2 . . . . Communications Jammed . | . . . . . . Distress Signals . | . . . . . . Times Spotted 26 | . 13 . . 6 7 Peak Tracking Total 5 | . 5 . . 3 2 Tactical Retreats 3 | . 2 . . 1 . Traps | -11 -10 -10 -10 -9 -8 ------- Run | Scr Mat Min Exi Min Mat Traps Triggered 1 | . 1 . . . . Indirectly . | . . . . . . Trap Hack Attempts . | . . . . . . Triggered . | . . . . . . Disarmed . | . . . . . . Reprogrammed . | . . . . . . Reused . | . . . . . . Traps Extracted . | . . . . . . Installed . | . . . . . . Triggered . | . . . . . . Machines | -11 -10 -10 -10 -9 -8 ---------- Run | Scr Mat Min Exi Min Mat Machines Disabled . | . . . . . . Max in Single Turn . | . . . . . . Machines Sabotaged . | . . . . . . Garrisons Compromised . | . . . . . . Overloaded Fab Kills . | . . . . . . Fab Network Shutdowns . | . . . . . . Hacking | -11 -10 -10 -10 -9 -8 --------- Run | Scr Mat Min Exi Min Mat Machines Accessed 12 | . 8 . 2 . 2 Terminals 10 | . 8 . . . 2 Fabricators . | . . . . . . Repair Stations . | . . . . . . Recycling Units . | . . . . . . Scanalyzers . | . . . . . . Garrison Access . | . . . . . . Total Hacks 36 | . 19 . 9 . 8 Successful 30 | . 17 . 9 . 4 Failed 6 | . 2 . . . 4 Catastrophic . | . . . . . . Database Lockouts . | . . . . . . Manual 17 | . 10 . 1 . 6 Terminals 27 | . 19 . . . 8 Fabricators . | . . . . . . Repair Stations . | . . . . . . Recycling Units . | . . . . . . Scanalyzers . | . . . . . . Garrison Access . | . . . . . . Terminal Hacks 19 | . 9 . 9 . 1 Record 8 | . . . 8 . . Prototype ID Bank 2 | . 2 . . . . Level Access Points 1 | . 1 . . . . Emergency Access Points 1 | . 1 . . . . Locate Traps 2 | . 2 . . . . Surveillance Status 1 | . . . . . 1 Hauler Manifests 1 | . 1 . . . . Registered Components 1 | . 1 . . . . Zone Layout 1 | . 1 . . . . EX-Prototype ID Bank 1 | . . . 1 . . Fabricator Hacks . | . . . . . . Repair Station Hacks . | . . . . . . Recycling Unit Hacks . | . . . . . . Scanalyzer . | . . . . . . Garrison Access Hacks . | . . . . . . Unauthorized Hacks 11 | . 8 . . . 3 Terminals 11 | . 8 . . . 3 Assimilate 1 | . . . . . 1 Botnet 10 | . 8 . . . 2 Fabricators . | . . . . . . Repair Stations . | . . . . . . Recycling Units . | . . . . . . Scanalyzers . | . . . . . . Garrison Access . | . . . . . . Data Cores Recovered . | . . . . . . Used . | . . . . . . Hacking Detections 10 | . 8 . . . 2 Full Trace Events . | . . . . . . Feedback Events . | . . . . . . Feedback Blocked . | . . . . . . Robot Schematics Acquired . | . . . . . . Robots Built . | . . . . . . Matter . | . . . . . . Time . | . . . . . . Total Robot Build Rating . | . . . . . . Part Schematics Acquired . | . . . . . . Parts Built . | . . . . . . Matter . | . . . . . . Time . | . . . . . . Total Part Build Rating . | . . . . . . Parts Repaired . | . . . . . . Time . | . . . . . . Parts Recycled . | . . . . . . Recycled Matter . | . . . . . . Retrieved Matter . | . . . . . . Retrieved Components . | . . . . . . Parts Scanalyzed . | . . . . . . Part Schematics Acquired . | . . . . . . Parts Damaged . | . . . . . . Bothacking | -11 -10 -10 -10 -9 -8 ------------ Run | Scr Mat Min Exi Min Mat Used RIF Installer . | . . . . . . Robots Hacked . | . . . . . . Non-combat . | . . . . . . Combat . | . . . . . . Robot Hacks Applied . | . . . . . . Relay Couplers Released . | . . . . . . Robots Rewired . | . . . . . . Allies Hacked . | . . . . . . Hacks Repelled . | . . . . . . Allies | -11 -10 -10 -10 -9 -8 -------- Run | Scr Mat Min Exi Min Mat Total Allies . | . . . . . . Largest Group . | . . . . . . Highest-Rated Group . | . . . . . . Highest-Rated Ally . | . . . . . . Total Orders . | . . . . . . Ally Attacks . | . . . . . . Total Damage . | . . . . . . Kills . | . . . . . . Allies Corrupted . | . . . . . . Allies Melted . | . . . . . . Intel | -11 -10 -10 -10 -9 -8 ------- Run | Scr Mat Min Exi Min Mat Robot Analysis Total . | . . . . . . Derelict Logs Recovered 3 | . . 1 . 2 . Drone Launches . | . . . . . . Drone Recoveries . | . . . . . . Exploration | -11 -10 -10 -10 -9 -8 ------------- Run | Scr Mat Min Exi Min Mat Turns Passed 3072 | 123 826 105 642 572 804 Spaces Moved 2015 | 101 566 88 534 431 295 Core 29 | 29 . . . . . Treads . | . . . . . . Legs 1986 | 72 566 88 534 431 295 Wheels . | . . . . . . Hover . | . . . . . . Flight . | . . . . . . Fastest Speed 50 | 50 120 120 120 120 120 Average Speed 121 | 106 127 120 120 120 120 Slowest Speed 150 | 120 150 120 120 120 120 Overloaded Moves . | . . . . . . Propulsion Burnouts . | . . . . . . Robots Hopped . | . . . . . . Cave-ins Triggered . | . . . . . . Exploration Rate (%) 49 | 6 96 18 90 67 17 Regions Visited 5 Branch Regions 3 Pre-discovered Areas 2 | . . 1 . 1 . Known Exits Taken 5 | 1 1 1 1 1 . Unknown Exits Taken . | . . . . . . Scrap Searched 1 | . . . . 1 . Spaces Dug . | . . . . . . Terrain Destroyed 23 | . 23 . . . . Melee . | . . . . . . Projectile . | . . . . . . AOE 23 | . 23 . . . . Actions | -11 -10 -10 -10 -9 -8 --------- Run | Scr Mat Min Exi Min Mat Total 2554 | 113 640 87 535 464 715 Wait 427 | . 29 . . 14 384 Move 2010 | 100 565 87 533 430 295 Hop . | . . . . . . Pick Up 23 | 6 10 . 1 3 3 Fast Attach 13 | 6 4 . . . 3 Attach 7 | . 4 . . . 3 Detach 3 | . 2 . . . 1 Swap 2 | . 2 . . . . Drop 15 | . 7 . 1 3 4 Fire 53 | . 17 . . 14 22 Melee . | . . . . . . Ram . | . . . . . . Kick 1 | 1 . . . . . Crush . | . . . . . . Escape Stasis . | . . . . . . Rewire . | . . . . . . Trap . | . . . . . . Miscellaneous . | . . . . . . Route ------- -11/Scrapyard -10/Materials (discovered 4 exits: *Mat x3 / *Min) -10/Mines -10/Exiles (discovered 2 exits: *Min x2) -9/Mines (discovered 2 exits: *Mat x2) -8/Materials History --------- Turn | Location | Event 2 | -11/Scrapyard | Met Revision 17 3 | -11/Scrapyard | Identified exit to Materials 3 | -11/Scrapyard | Discovered exit to Materials (range 15) 124 | -11/Scrapyard | Entered Materials 124 | -10/Materials | Evolved 1 slot: Utility x1 315 | -10/Materials | Build established: Hacker-Mutant 325 | -10/Materials | Identified exit to Materials 325 | -10/Materials | Discovered exit to Materials (range 8) 942 | -10/Materials | Identified exit to Mines 942 | -10/Materials | Discovered exit to Mines (range 8) 950 | -10/Materials | Entered Mines 960 | -10/Mines | Learned location of Zion (-6) 1016 | -10/Mines | Deemed a non-threat by the Exiles lab entrance 1018 | -10/Mines | Identified exit to Exiles 1018 | -10/Mines | Discovered exit to Exiles (range 5) 1055 | -10/Mines | Entered Exiles 1075 | -10/Exiles | Identified exit to Mines 1075 | -10/Exiles | Discovered exit to Mines (range 15) 1094 | -10/Exiles | Met 8R-AWN 1112 | -10/Exiles | Met EX-HEX 1145 | -10/Exiles | Met EX-BIN 1171 | -10/Exiles | Aligned with FarCom system 1172 | -10/Exiles | Given EX-Vault access code 1209 | -10/Exiles | Opened EX-Vault 1234 | -10/Exiles | Warned to stay clear of 0b10 Research branches 1270 | -10/Exiles | Met EX-DEC 1340 | -10/Exiles | Visited The Gauntlet 1571 | -10/Exiles | Found 0b10 Alert Chip 1683 | -10/Exiles | Discovered exit to Mines (range 11) 1697 | -10/Exiles | Left Exiles lab with 0b10 Alert Chip 1697 | -10/Exiles | Entered Mines 1848 | -9/Mines | Identified exit to Materials 1848 | -9/Mines | Discovered exit to Materials (range 13) 2269 | -9/Mines | Entered Materials 2269 | -8/Materials | Evolved 4 slots: Utility x4 2568 | -8/Materials | Build established: Hacker-Skirmisher 3073 | -8/Materials | Self-destructed Last Messages --------------- 02745_ U-05 Engineer builds a Door. 02753_ U-05 Engineer lays Concrete. 02759_ R-06 Scavenger collects Lgt. Treads. 02763_ R-06 Scavenger collects Imp. Ion Engine. 02765_ O-16 Technician destroyed. 02769_ Acquired 11 matter. 02780_ Acquired 45 matter. 03031_ Dropped Flight Unit. 03031_ Acquired Flight Unit. 03040_ C-30 ARC bursts open, deploying its payload. 03040_ H-55 Commando unfolds itself. 03040_ Penetrated by Slug. 03043_ Slug penetrates Wall. 03046_ Med. Laser destroyed. 03052_ Penetrated by Slug. 03064_ Fusion Modulator explodes. 03065_ Slug penetrates Wall. 03068_ Penetrated by Slug. 03068_ Lgt. Armor Plating destroyed. 03071_ Penetrated by Slug. Map ----- +----------------------------------------------------+ | ?????????????????????????????????????????? | | ?????????????????????????????????????????? | | ?????????????????????????????????????????? | | ?????????????????????????????????????????? | | ?????????????????????????????????????????? | | ?????????????????????????????????????????? | | ?????????????????????????????????????????? | | ?????????????????????????????????????????? | | ?????????????????????????????????????????? | | ?????????????????????????????????????????? | | ?????????????????????????????????????????? | | ?????????????????????????????????????????? | | ?????????????????????? ????????????????? | | ????????????????????? ??????????????? | | ?????????############ a ???????????????? | | ?????????# # ! ??????w?????????? | | ????????##;;; ;; ????????????????? | | ????????# ; ; ?????????????????? | | ?????????#; ; ??????????????????? | | ?????????#; ;;##?????????????????? | | ?????????#; ; #?????????????????? | | ?????????#; ; ##?????????????????? | | ?????????#; ; #?????????????????? | | ?????????#; ; #????+?????????????? | | ??????????# ; #??? #?????????????? | | ??????????#####;;@;;#???? #?????????????? | | ??????????????# #### #?????????????? | | ?????????###### #?????????????? | | ?????????# g #?????????????? | | ?????????# #### a #?????????????? | | ?????????# #??# ########?????????????? | | ?????????# #??## ##????????????????????? | | ?????????# #???# #?????????????????????? | | ?????????# #???# #?????????????????????? | | ?????????# #???# #?????????????????????? | | ?????????#+#???# #?????????????????????? | | ???????????????# #?????????????????????? | | ???????????????# h####################### | | ???????????????# | | ???????????????+ | | ???????????????# | | ???????????????# ####################### | | ???????????????# ############??????????? | | ???????????????# ## #??????????? | | ???????????Y??## ## """ T #??????????? | | ????########### # """ = #??????????? | | ????# # """ #??????????? | | ????# T + """ #??????????? | | ????# # """ ! #??????"???? | | ????# ####### # !! #??????"???? | +----------------------------------------------------+ Best States ------------- Heat Dissipation 45 Energy Generation 10 Energy Capacity 125 Matter Stores 300 Matter Capacity 300 Sight Range 16 Robot Scan Range 10 Terrain Scan Density 110 Armor Coverage 150 Resistance: KI 35 Resistance: TH 35 Resistance: EX 35 Resistance: EM 35 Resistance: I 35 Resistance: S 35 Resistance: P 35 Evasion (%) 50 Offensive Hacking 20 Item Schematics ----------------- None Robot Schematics ------------------ None Fabricated ------------ Nothing Alien Tech Used ----------------- None Achievements -------------- None Challenges ------------ None Game ------ Seed ThunderManeuveringBeam Manual? 0 Play Time 00:33:53 Cumulative 167.3 hours Start 2020.07.12 @ 13:05:00 End 2020.07.23 @ 01:06:52 Sessions 7 Manual Loads 0 Difficulty Explorer Special Mode None Game No. 108 Rogue 80 Adventurer 0 Explorer 28 Win Type - Total 4 Types 4/0/0/0/0/0/0 Lore% 62 Gallery% 67 Achievement% 58 Wizard Run 0 Options --------- ASCII 0 Keyboard 1 Movement Vi Keybinds 0 Fullscreen 1 Font 12/Smallcaps Map View 95x75 Tactical HUD 1 Map Filters NONE Filters LOW_CONTRAST(47,30,31) Steam 1 RUN: ef8d5f3c-49a1-4a1b-a3a5-213f5aee5a49